fUSD/lending_fUSD_20250125
["ID","MTS","AMOUNT","RATE_DAILY","PERIOD"]
[350299538,1737775855120,-500.0,0.00021468,2]
[350299539,1737775855129,-500.0,0.00021468,2]
[350299540,1737775855138,-500.0,0.00021468,2]
[350299541,1737775855147,-500.0,0.00021468,2]
[350299542,1737775855156,-500.0,0.00021468,2]
[350299543,1737775855165,-500.0,0.00021468,2]
[350299544,1737775855174,-500.0,0.00021468,2]
[350299545,1737775855183,-500.0,0.00021468,2]
[350299546,1737775855194,-500.0,0.00021468,2]
[350299547,1737775855203,-500.0,0.00021468,2]
[350299548,1737775855212,-500.0,0.00021468,2]
[350299549,1737775855221,-500.0,0.00021468,2]
[350299550,1737775855230,-500.0,0.00021468,2]
[350299551,1737775855239,-500.0,0.00021468,2]
[350299552,1737775855248,-500.0,0.00021468,2]
[350299553,1737775855257,-500.0,0.00021468,2]
[350299554,1737775855267,-500.0,0.00021468,2]
[350299555,1737775855276,-500.0,0.00021468,2]
[350299556,1737775855285,-500.0,0.00021468,2]
[350299557,1737775855295,-500.0,0.00021468,2]
[350299558,1737775855305,-500.0,0.00021468,2]
[350299559,1737775855316,-500.0,0.00021468,2]
[350299560,1737775855327,-500.0,0.00021468,2]
[350299561,1737775855337,-500.0,0.00021468,2]
[350299562,1737775855346,-500.0,0.00021468,2]
[350299563,1737775855356,-500.0,0.00021468,2]
[350299564,1737775855365,-500.0,0.00021468,2]
[350299565,1737775855375,-500.0,0.00021468,2]
[350299566,1737775855384,-677.03,0.00021468,2]
[350299567,1737775855393,-500.0,0.00021468,2]
[350299568,1737775855404,-500.0,0.00021468,2]
[350299569,1737775855414,-500.0,0.00021468,2]
[350299570,1737775855424,-500.0,0.00021468,2]
[350299571,1737775855435,-500.0,0.00021468,2]
[350299572,1737775855446,-500.0,0.00021468,2]
[350299573,1737775855456,-500.0,0.00021468,2]
[350299574,1737775855465,-500.0,0.00021468,2]
[350299575,1737775855476,-500.0,0.00021468,2]
[350299576,1737775855491,-500.0,0.00021468,2]
[350299577,1737775855500,-500.0,0.00021468,2]
[350299578,1737775855510,-500.0,0.00021468,2]
[350299579,1737775855520,-500.0,0.00021468,2]
[350299580,1737775855529,-500.0,0.00021468,2]
[350299581,1737775855539,-500.0,0.00021468,2]
[350299582,1737775855548,-500.0,0.00021468,2]
[350299583,1737775855558,-500.0,0.00021468,2]
[350299584,1737775855567,-500.0,0.00021468,2]
[350299585,1737775855577,-500.0,0.00021468,2]
[350299586,1737775855587,-500.0,0.00021468,2]
[350299587,1737775855597,-500.0,0.00021468,2]
[350299588,1737775855607,-500.0,0.00021468,2]
[350299589,1737775855616,-500.0,0.00021468,2]
[350299590,1737775855626,-500.0,0.00021468,2]
[350299591,1737775855635,-500.0,0.00021468,2]
[350299592,1737775855645,-500.0,0.00021468,2]
[350299593,1737775855655,-500.0,0.00021468,2]
[350299594,1737775855664,-727.35,0.00021468,2]
[350299595,1737775855674,-500.0,0.00021468,2]
[350299596,1737775855684,-500.0,0.00021468,2]
[350299597,1737775855695,-500.0,0.00021468,2]
[350299598,1737775855704,-500.0,0.00021468,2]
[350299599,1737775855714,-500.0,0.00021468,2]
[350299600,1737775855725,-500.0,0.00021468,2]
[350299601,1737775855735,-500.0,0.00021468,2]
[350299602,1737775855744,-500.0,0.00021468,2]
[350299603,1737775855754,-502.35,0.00021468,2]
[350299604,1737775855766,-500.0,0.00021468,2]
[350299605,1737775855776,-156.70650141,0.00021468,2]
[350299606,1737775855786,-500.0,0.00021468,2]
[350299607,1737775855796,-500.0,0.00021468,2]
[350299608,1737775855805,-500.0,0.00021468,2]
[350299609,1737775855814,-500.0,0.00021468,2]
[350299610,1737775855824,-500.0,0.00021468,2]
[350299611,1737775855833,-150.0,0.00021468,2]
[350299612,1737775855842,-500.0,0.00021468,2]
[350299613,1737775855851,-1000.0,0.00021468,2]
[350299614,1737775855861,-500.0,0.00021468,2]
[350299615,1737775855870,-500.0,0.00021468,2]
[350299616,1737775855879,-500.0,0.00021468,2]
[350299617,1737775855889,-500.0,0.00021468,2]
[350299618,1737775855899,-500.0,0.00021468,2]
[350299619,1737775855908,-249.4296922,0.00021468,2]
[350299620,1737775855917,-150.0,0.00021483,2]
[350299621,1737775855927,-150.0,0.00021493,2]
[350299622,1737775855935,-2566.74124023,0.000215,2]
[350299623,1737775855945,-2110.0,0.00021504,2]
[350299624,1737775855955,-150.0,0.00021514,2]
[350299625,1737775855966,-150.0,0.00021517,2]
[350299626,1737775855975,-150.0,0.00021519,2]
[350299627,1737775855984,-4498.87687619,0.0002152,2]
[350299628,1737775855993,-203.07256706,0.0002154,2]
[350299629,1737775856003,-150.0,0.00021547,2]
[350299630,1737775856012,-150.0,0.00021548,2]
[350299631,1737775856021,-1117.40863292,0.0002156,2]
[350299632,1737775856030,-1010.44962221,0.0002156,2]
[350299633,1737775856040,-150.0,0.00021566,2]
[350299634,1737775856049,-150.0,0.00021573,2]
[350299635,1737775856058,-150.0,0.00021586,2]
[350299636,1737775856067,-150.0,0.00021592,2]
[350299637,1737775856078,-150.0,0.00021601,2]
[350299638,1737775856088,-500.0,0.00021605,2]
[350299639,1737775856097,-500.0,0.00021605,2]
[350299640,1737775856106,-500.0,0.00021605,2]
[350299641,1737775856115,-500.0,0.00021605,2]
[350299642,1737775856125,-500.0,0.00021605,2]
[350299643,1737775856134,-500.0,0.00021605,2]
[350299644,1737775856143,-500.0,0.00021605,2]
[350299645,1737775856152,-500.0,0.00021605,2]
[350299646,1737775856162,-500.0,0.00021605,2]
[350299647,1737775856171,-500.0,0.00021605,2]
[350299648,1737775856180,-500.0,0.00021605,2]
[350299649,1737775856190,-247.06560031,0.00021605,2]
[350299650,1737775856199,-500.0,0.00021605,2]
[350299651,1737775856208,-500.0,0.00021605,2]
[350299652,1737775856217,-500.0,0.00021605,2]
[350299653,1737775856226,-500.0,0.00021605,2]
[350299654,1737775856235,-500.0,0.00021605,2]
[350299655,1737775856244,-500.0,0.00021605,2]
[350299656,1737775856253,-500.0,0.00021605,2]
[350299657,1737775856263,-500.0,0.00021605,2]
[350299658,1737775856271,-500.0,0.00021605,2]
[350299659,1737775856280,-500.0,0.00021605,2]
[350299660,1737775856289,-500.0,0.00021605,2]
[350299661,1737775856299,-500.0,0.00021605,2]
[350299662,1737775856307,-502.0,0.00021605,2]
[350299663,1737775856317,-500.0,0.00021605,2]
[350299664,1737775856328,-500.0,0.00021605,2]
[350299665,1737775856343,-500.0,0.00021605,2]
[350299666,1737775856352,-500.0,0.00021605,2]
[350299667,1737775856362,-500.0,0.00021605,2]
[350299668,1737775856371,-500.0,0.00021605,2]
[350299669,1737775856381,-500.0,0.00021605,2]
[350299670,1737775856390,-500.0,0.00021605,2]
[350299671,1737775856399,-500.0,0.00021605,2]
[350299672,1737775856409,-500.0,0.00021605,2]
[350299673,1737775856418,-500.0,0.00021605,2]
[350299674,1737775856428,-677.03,0.00021605,2]
[350299675,1737775856437,-500.0,0.00021605,2]
[350299676,1737775856446,-500.0,0.00021605,2]
[350299677,1737775856456,-500.0,0.00021605,2]
[350299678,1737775856466,-500.0,0.00021605,2]
[350299679,1737775856475,-500.0,0.00021605,2]
[350299680,1737775856484,-500.0,0.00021605,2]
[350299681,1737775856494,-500.0,0.00021605,2]
[350299682,1737775856504,-500.0,0.00021605,2]
[350299683,1737775856513,-633.56,0.00021605,2]
[350299684,1737775856522,-500.0,0.00021605,2]
[350299685,1737775856531,-500.0,0.00021605,2]
[350299686,1737775856541,-500.0,0.00021605,2]
[350299687,1737775856550,-500.0,0.00021605,2]
[350299688,1737775856559,-188.41745267,0.00021605,2]
[350299689,1737775856569,-500.0,0.00021605,2]
[350299690,1737775856579,-500.0,0.00021605,2]
[350299691,1737775856588,-500.0,0.00021605,2]
[350299692,1737775856598,-500.0,0.00021605,2]
[350299693,1737775856607,-500.0,0.00021605,2]
[350299694,1737775856616,-500.0,0.00021605,2]
[350299695,1737775856626,-727.35,0.00021605,2]
[350299696,1737775856635,-500.0,0.00021605,2]
[350299697,1737775856644,-500.0,0.00021605,2]
[350299698,1737775856653,-500.0,0.00021605,2]
[350299699,1737775856663,-500.0,0.00021605,2]
[350299700,1737775856673,-500.0,0.00021605,2]
[350299701,1737775856685,-500.0,0.00021605,2]
[350299702,1737775856695,-500.0,0.00021605,2]
[350299703,1737775856706,-500.0,0.00021605,2]
[350299704,1737775856716,-500.0,0.00021605,2]
[350299705,1737775856725,-500.0,0.00021605,2]
[350299706,1737775856735,-500.0,0.00021605,2]
[350299707,1737775856744,-500.0,0.00021605,2]
[350299708,1737775856753,-500.0,0.00021605,2]
[350299709,1737775856763,-500.0,0.00021605,2]
[350299710,1737775856772,-500.0,0.00021605,2]
[350299711,1737775856782,-500.0,0.00021605,2]
[350299712,1737775856791,-1000.0,0.00021608,2]
[350299713,1737775856800,-150.0,0.00021609,2]
[350299714,1737775856810,-150.0,0.00021618,2]
[350299715,1737775856819,-150.0,0.00021626,2]
[350299716,1737775856829,-150.0,0.00021685,2]
[350299717,1737775856838,-150.0,0.0002169,2]
[350299718,1737775856847,-150.0,0.00021692,2]
[350299719,1737775856856,-150.0,0.00021694,2]
[350299720,1737775856866,-150.0,0.00021698,2]
[350299721,1737775856876,-7246.37612033,0.000217,2]
[350299722,1737775856885,-150.0,0.00021723,2]
[350299723,1737775856894,-150.0,0.00021736,2]
[350299724,1737775856903,-500.0,0.00021742,2]
[350299725,1737775856912,-500.0,0.00021742,2]
[350299726,1737775856921,-500.0,0.00021742,2]
[350299727,1737775856930,-526.93865779,0.00021742,2]
[350299728,1737775856939,-500.0,0.00021742,2]
[350299729,1737775856948,-500.0,0.00021742,2]
[350299730,1737775856958,-500.0,0.00021742,2]
[350299731,1737775856972,-500.0,0.00021742,2]
[350299732,1737775856990,-500.0,0.00021742,2]
[350299733,1737775857004,-500.0,0.00021742,2]
[350299734,1737775857014,-603.15,0.00021742,2]
[350299735,1737775857023,-500.0,0.00021742,2]
[350299736,1737775857132,-500.0,0.00021742,2]
[350299737,1737775857142,-500.0,0.00021742,2]
[350299738,1737775857152,-500.0,0.00021742,2]
[350299739,1737775857161,-176.71,0.00021742,2]
[350299740,1737775857171,-511.55,0.00021742,2]
[350299741,1737775857180,-500.0,0.00021742,2]
[350299742,1737775857189,-463.1,0.00021742,2]
[350299743,1737775857198,-500.0,0.00021742,2]
[350299744,1737775857207,-290.75,0.00021742,2]
[350299745,1737775857219,-500.0,0.00021742,2]
[350299746,1737775857228,-366.45,0.00021742,2]
[350299747,1737775857238,-246.86,0.00021742,2]
[350299748,1737775857248,-500.0,0.00021742,2]
[350299749,1737775857258,-500.0,0.00021742,2]
[350299750,1737775857267,-584.85,0.00021742,2]
[350299751,1737775857277,-500.0,0.00021742,2]
[350299752,1737775857287,-500.0,0.00021742,2]
[350299753,1737775857297,-500.0,0.00021742,2]
[350299754,1737775857306,-337.81,0.00021742,2]
[350299755,1737775857317,-500.0,0.00021742,2]
[350299756,1737775857328,-677.03,0.00021742,2]
[350299757,1737775857337,-500.0,0.00021742,2]
[350299758,1737775857347,-500.0,0.00021742,2]
[350299759,1737775857356,-607.02285826,0.00021742,2]
[350299760,1737775857367,-500.0,0.00021742,2]
[350299761,1737775857376,-500.0,0.00021742,2]
[350299762,1737775857385,-500.0,0.00021742,2]
[350299763,1737775857394,-500.0,0.00021742,2]
[350299764,1737775857403,-500.0,0.00021742,2]
[350299765,1737775857413,-500.0,0.00021742,2]
[350299766,1737775857422,-500.0,0.00021742,2]
[350299767,1737775857431,-500.0,0.00021742,2]
[350299768,1737775857440,-500.0,0.00021742,2]
[350299769,1737775857449,-727.35,0.00021742,2]
[350299770,1737775857458,-500.0,0.00021742,2]
[350299771,1737775857467,-500.0,0.00021742,2]
[350299772,1737775857478,-500.0,0.00021742,2]
[350299773,1737775857488,-500.0,0.00021742,2]
[350299774,1737775857497,-448.8,0.00021742,2]
[350299775,1737775857506,-500.0,0.00021742,2]
[350299776,1737775857515,-500.0,0.00021742,2]
[350299777,1737775857525,-500.0,0.00021742,2]
[350299778,1737775857534,-500.0,0.00021742,2]
[350299779,1737775857544,-500.0,0.00021742,2]
[350299780,1737775857553,-500.0,0.00021742,2]
[350299781,1737775857563,-500.0,0.00021742,2]
[350299782,1737775857572,-150.0,0.00021747,2]
[350299783,1737775857581,-150.0,0.00021756,2]
[350299784,1737775857591,-150.0,0.0002177,2]
[350299785,1737775857600,-150.0,0.00021779,2]
[350299786,1737775857608,-150.0,0.00021784,2]
[350299787,1737775857617,-150.0,0.00021793,2]
[350299788,1737775857627,-21210.71984246,0.000218,2]
[350299789,1737775857636,-5434.0,0.000218,2]
[350299790,1737775857645,-150.0,0.00021803,2]
[350299791,1737775857654,-235.92455412,0.00021808,2]
[350299792,1737775857663,-150.0,0.00021816,2]
[350299793,1737775857672,-150.0,0.00021823,2]
[350299794,1737775857682,-500.0,0.00021823,2]
[350299795,1737775857694,-500.0,0.00021824,2]
[350299796,1737775857703,-150.0,0.00021845,2]
[350299797,1737775857712,-150.0,0.00021856,2]
[350299798,1737775857721,-150.0,0.00021857,2]
[350299799,1737775857730,-150.0,0.00021871,2]
[350299800,1737775857740,-351.15,0.00021879,2]
[350299801,1737775857749,-340.9,0.00021879,2]
[350299802,1737775857758,-500.0,0.00021879,2]
[350299803,1737775857767,-500.0,0.00021879,2]
[350299804,1737775857777,-240.9,0.00021879,2]
[350299805,1737775857787,-485.14610413,0.00021879,2]
[350299806,1737775857796,-542.1,0.00021879,2]
[350299807,1737775857806,-500.0,0.00021879,2]
[350299808,1737775857815,-500.0,0.00021879,2]
[350299809,1737775857824,-497.56682455,0.00021879,2]
[350299810,1737775857833,-500.0,0.00021879,2]
[350299811,1737775857843,-500.0,0.00021879,2]
[350299812,1737775857852,-677.03,0.00021879,2]
[350299813,1737775857862,-500.0,0.00021879,2]
[350299814,1737775857872,-500.0,0.00021879,2]
[350299815,1737775857881,-153.06,0.00021879,2]
[350299816,1737775857891,-500.0,0.00021879,2]
[350299817,1737775857900,-500.0,0.00021879,2]
[350299818,1737775857910,-500.0,0.00021879,2]
[350299819,1737775857920,-500.0,0.00021879,2]
[350299820,1737775857929,-500.0,0.00021879,2]
[350299821,1737775857940,-727.35,0.00021879,2]
[350299822,1737775857950,-454.35,0.00021879,2]
[350299823,1737775857962,-500.0,0.00021879,2]
[350299824,1737775857974,-500.0,0.00021879,2]
[350299825,1737775857986,-184.65,0.00021879,2]
[350299826,1737775857995,-500.0,0.00021879,2]
[350299827,1737775858005,-500.0,0.00021879,2]
[350299828,1737775858015,-500.0,0.00021879,2]
[350299829,1737775858024,-532.36977603,0.00021879,2]
[350299830,1737775858033,-500.0,0.00021879,2]
[350299831,1737775858044,-2000.0,0.0002189,2]
[350299832,1737775858053,-362.7631,0.0002189,2]
[350299833,1737775858063,-150.0,0.00021891,2]
[350299834,1737775858073,-150.0,0.00021891,2]
[350299835,1737775858082,-150.0,0.00021896,2]
[350299836,1737775858091,-242.958854,0.00021899,2]
[350299837,1737775858100,-26246.6113,0.000219,2]
[350299838,1737775858109,-244.47235882,0.000219,2]
[350299839,1737775858118,-3078.85303435,0.000219,2]
[350299840,1737775858127,-5335.28031307,0.000219,2]
[350299841,1737775858136,-203.07256706,0.000219,3]
[350299842,1737775858145,-193.71076426,0.000219,2]
[350299843,1737775858154,-167.40245172,0.000219,2]
[350299844,1737775858164,-1286.0,0.000219,2]
[350299845,1737775858173,-150.0,0.00021907,2]
[350299846,1737775858183,-150.0,0.00021914,2]
[350299847,1737775858192,-1000.0,0.00021918,2]
[350299848,1737775858201,-1000.0,0.00021918,2]
[350299849,1737775858210,-1071.0,0.00021918,2]
[350299850,1737775858220,-150.0,0.00021918,2]
[350299851,1737775858229,-1000.0,0.00021918,2]
[350299852,1737775858238,-1000.0,0.00021918,2]
[350299853,1737775858247,-1000.0,0.00021918,2]
[350299854,1737775858257,-1000.0,0.00021918,2]
[350299855,1737775858268,-1000.0,0.00021918,2]
[350299856,1737775858277,-1000.0,0.00021918,2]
[350299857,1737775858287,-1000.0,0.00021918,2]
[350299858,1737775858297,-1000.0,0.00021918,2]
[350299859,1737775858305,-1000.0,0.00021918,2]
[350299860,1737775858315,-1000.0,0.00021918,2]
[350299861,1737775858324,-1000.0,0.00021918,2]
[350299862,1737775858333,-1000.0,0.00021918,2]
[350299863,1737775858343,-1000.0,0.00021918,2]
[350299864,1737775858354,-1000.0,0.00021918,2]
[350299865,1737775858362,-1000.0,0.00021918,2]
[350299866,1737775858371,-1000.0,0.00021918,2]
[350299867,1737775858380,-1000.0,0.00021918,2]
[350299868,1737775858389,-150.0,0.00021918,2]
[350299869,1737775858399,-150.0,0.00021919,2]
[350299870,1737775858407,-150.0,0.0002192,2]
[350299871,1737775858416,-150.0,0.00021932,2]
[350299872,1737775858426,-150.0,0.00021955,2]
[350299873,1737775858436,-150.0,0.00021956,2]
[350299874,1737775858445,-150.0,0.0002196,2]
[350299875,1737775858454,-150.0,0.00021966,2]
[350299876,1737775858464,-150.0,0.00021973,4]
[350299877,1737775858474,-150.0,0.00021973,4]
[350299878,1737775858484,-150.0,0.00021973,4]
[350299879,1737775858494,-150.0,0.00021973,4]
[350299880,1737775858505,-150.0,0.00021973,2]
[350299881,1737775858514,-150.0,0.00021977,2]
[350299882,1737775858524,-150.0,0.00021978,4]
[350299883,1737775858533,-150.0,0.00021982,4]
[350299884,1737775858543,-150.0,0.00021983,2]
[350299885,1737775858553,-150.0,0.00021984,4]
[350299886,1737775858563,-152.18013143,0.00021986,2]
[350299887,1737775858573,-150.0,0.00021986,2]
[350299888,1737775858583,-150.0,0.00021986,4]
[350299889,1737775858592,-150.0,0.00021988,2]
[350299890,1737775858601,-778.71138085,0.00021989,2]
[350299891,1737775858610,-983.932419,0.00021989,2]
[350299892,1737775858619,-287.2507612,0.00021989,2]
[350299893,1737775858629,-150.0,0.00021989,4]
[350299894,1737775858638,-5050.0,0.0002199,28]
[350299895,1737775858647,-2000.0,0.0002199,27]
[350299896,1737775858657,-4200.0,0.0002199,3]
[350299897,1737775858666,-195852.52054821,0.0002199,14]
[350299898,1737775858676,-996.52607701,0.0002199,2]
[350299899,1737775858685,-150.0,0.00021991,4]
[350299900,1737775858694,-150.0,0.00021995,4]
[350299901,1737775858703,-4224.76254523,0.00021996,2]
[350299902,1737775858713,-119781.66780922,0.00021997,2]
[350299903,1737775858722,-2000.0,0.00021999,2]
[350299904,1737775858731,-2000.0,0.00021999,2]
[350299905,1737775858740,-2000.0,0.00021999,2]
[350299906,1737775858749,-2000.0,0.00021999,2]
[350299907,1737775858758,-2000.0,0.00021999,2]
[350299908,1737775858767,-2000.0,0.00021999,2]
[350299909,1737775858777,-2000.0,0.00021999,2]
[350299910,1737775858786,-2000.0,0.00021999,2]
[350299911,1737775858795,-526.65265018,0.00021999,2]
[350299912,1737775858805,-500.0,0.00021999,2]
[350299913,1737775858814,-500.0,0.00021999,2]
[350299914,1737775858823,-500.0,0.00021999,2]
[350299915,1737775858832,-500.0,0.00021999,2]
[350299916,1737775858841,-500.0,0.00021999,2]
[350299917,1737775858851,-500.0,0.00021999,2]
[350299918,1737775858861,-500.0,0.00021999,2]
[350299919,1737775858870,-385.8,0.00021999,2]
[350299920,1737775858880,-500.0,0.00021999,2]
[350299921,1737775858890,-500.0,0.00021999,2]
[350299922,1737775858900,-596.82,0.00021999,2]
[350299923,1737775858909,-500.0,0.00021999,2]
[350299924,1737775858926,-2000.0,0.00021999,30]
[350299925,1737775858936,-1000.0,0.00021999,2]
[350299926,1737775858946,-1012.96200953,0.00021999,2]
[350299927,1737775858958,-500.0,0.00021999,2]
[350299928,1737775858971,-500.0,0.00021999,2]
[350299929,1737775858980,-505.93863171,0.00021999,2]
[350299930,1737775858991,-190.5248642,0.00021999,2]
[350299931,1737775859001,-511.22423621,0.00021999,2]
[350299932,1737775859012,-508.99537261,0.00021999,2]
[350299933,1737775859021,-500.0,0.00021999,2]
[350299934,1737775859031,-500.0,0.00021999,2]
[350299935,1737775859039,-505.1667634,0.00021999,2]
[350299936,1737775859050,-500.0,0.00021999,2]
[350299937,1737775859059,-500.0,0.00021999,2]
[350299938,1737775859070,-500.0,0.00021999,2]
[350299939,1737775859079,-321.39939271,0.00021999,2]
[350299940,1737775859089,-530.37308262,0.00021999,2]
[350299941,1737775859098,-500.0,0.00021999,2]
[350299942,1737775859109,-500.0,0.00021999,2]
[350299943,1737775859119,-500.0,0.00021999,2]
[350299944,1737775859129,-500.0,0.00021999,2]
[350299945,1737775859139,-571.98846702,0.00021999,2]
[350299946,1737775859149,-500.0,0.00021999,2]
[350299947,1737775859159,-512.86303271,0.00021999,2]
[350299948,1737775859168,-512.22699513,0.00021999,2]
[350299949,1737775859177,-506.15917959,0.00021999,2]
[350299950,1737775859187,-585.97224379,0.00021999,2]
[350299951,1737775859199,-504.6810051,0.00021999,2]
[350299952,1737775859208,-503.05358035,0.00021999,2]
[350299953,1737775859218,-1317.68,0.00021999,2]
[350299954,1737775859228,-505.73313862,0.00021999,2]
[350299955,1737775859238,-500.0,0.00021999,2]
[350299956,1737775859247,-507.08339668,0.00021999,2]
[350299957,1737775859258,-500.0,0.00021999,2]
[350299958,1737775859268,-505.29242192,0.00021999,2]
[350299959,1737775859278,-504.26106128,0.00021999,2]
[350299960,1737775859288,-500.0,0.00021999,2]
[350299961,1737775859297,-500.0,0.00021999,2]
[350299962,1737775859401,-39220.7,0.00021999,2]
[350299963,1737775859411,-500.0,0.00021999,2]
[350299964,1737775859421,-500.0,0.00021999,2]
[350299965,1737775859430,-30130.72892011,0.00021999,2]
[350299966,1737775859439,-514.62463908,0.00021999,2]
[350299967,1737775859447,-500.0,0.00021999,2]
[350299968,1737775859456,-500.0,0.00021999,2]
[350299969,1737775859466,-510.5770386,0.00021999,2]
[350299970,1737775859475,-500.0,0.00021999,2]
[350299971,1737775859484,-506.28586868,0.00021999,2]
[350299972,1737775859494,-500.0,0.00021999,2]
[350299973,1737775859503,-500.0,0.00021999,2]
[350299974,1737775859512,-521.11555198,0.00021999,2]
[350299975,1737775859521,-500.0,0.00021999,2]
[350299976,1737775859531,-509.03474887,0.00021999,2]
[350299977,1737775859540,-505.86069911,0.00021999,2]
[350299978,1737775859549,-514.94509747,0.00021999,2]
[350299979,1737775859559,-517.58538464,0.00021999,2]
[350299980,1737775859568,-506.26200769,0.00021999,2]
[350299981,1737775859579,-520.50013592,0.00021999,2]
[350299982,1737775859588,-503.19537136,0.00021999,2]
[350299983,1737775859598,-516.75931884,0.00021999,2]
[350299984,1737775859606,-517.79778541,0.00021999,2]
[350299985,1737775859616,-505.88157477,0.00021999,2]
[350299986,1737775859625,-511.54535988,0.00021999,2]
[350299987,1737775859636,-500.0,0.00021999,2]
[350299988,1737775859647,-506.20144382,0.00021999,2]
[350299989,1737775859657,-507.76234162,0.00021999,2]
[350299990,1737775859666,-504.29490066,0.00021999,2]
[350299991,1737775859676,-509.9513943,0.00021999,2]
[350299992,1737775859685,-500.0,0.00021999,2]
[350299993,1737775859696,-515.69967816,0.00021999,2]
[350299994,1737775859706,-501.99822216,0.00021999,2]
[350299995,1737775859715,-500.0,0.00021999,2]
[350299996,1737775859725,-500.0,0.00021999,2]
[350299997,1737775859735,-500.0,0.00021999,2]
[350299998,1737775859745,-503.46220086,0.00021999,2]
[350299999,1737775859755,-505.88887589,0.00021999,2]
[350300000,1737775859764,-500.0,0.00021999,2]
[350300001,1737775859774,-449.10557995,0.00021999,2]
[350300002,1737775859783,-506.36942277,0.00021999,2]
[350300003,1737775859793,-68358.47600478,0.00022,2]
[350300004,1737775859802,-5714264.71443862,0.00022,2]
[350300005,1737775860032,-500.0,0.00016438,2]
[350300006,1737775860043,-500.0,0.00016575,2]
[350300007,1737775860054,-261.760428,0.00016712,2]
[350300008,1737775860166,-238.239572,0.00016712,2]
[350300009,1737775860176,-500.0,0.00016849,2]
[350300010,1737775860185,-500.0,0.00016986,2]
[350300011,1737775860195,-500.0,0.00017123,2]
[350300012,1737775860205,-500.0,0.0001726,2]
[350300013,1737775860214,-764.60993721,0.00022,2]
[350300014,1737775860226,-11401.6306497,0.00022,2]
[350300015,1737775860238,-301.8315199,0.00022,2]
[350300016,1737775860254,-5061.40799759,0.00022,2]
[350300017,1737775860265,-783.56922165,0.00022,2]
[350300018,1737775860413,-500.0,0.00017397,2]
[350300019,1737775860422,-107.35400488,0.00017534,2]
[350300020,1737775860432,-392.64599512,0.00017534,2]
[350300021,1737775860442,-500.0,0.00017671,2]
[350300022,1737775860452,-500.0,0.00017808,2]
[350300023,1737775860460,-500.0,0.00017945,2]
[350300024,1737775860469,-500.0,0.00018082,2]
[350300025,1737775860478,-500.0,0.00018219,2]
[350300026,1737775860487,-485.85400488,0.00018356,2]
[350300027,1737775860498,-14.14599512,0.00018356,2]
[350300028,1737775860508,-500.0,0.00018493,2]
[350300029,1737775860517,-612.52,0.0001863,2]
[350300030,1737775860527,-101100.83002447,0.00022,2]
[350300031,1737775860538,-339.959,0.00022,2]
[350300032,1737775860548,-382.92113158,0.00022,2]
[350300033,1737775860559,-490.44403302,0.00022,2]
[350300034,1737775860570,-44880.70010996,0.00022,2]
[350300035,1737775860583,-22962.09038652,0.00022,2]
[350300036,1737775860594,-1985044.05958781,0.00022,2]
[350300037,1737775860624,-4039.4621045,0.00022,2]